bitfinex-derivatives/quotes_SOLF0:USTF0_20260314
["timestamp","ask_amount","ask_price","bid_price","bid_amount"]
[1773507673626,3.7417456,87.016,86.973,3.26326661]
[1773507678824,3.7417456,87.009,86.948,3.25830478]
[1773507679130,3.7417456,87.009,86.951,3.25830478]
[1773507680631,3.7417456,86.996,86.951,3.25830478]
[1773507683536,3.80826292,87.006,86.971,3.61603898]
[1773507694846,3.80826292,87.039,86.981,3.65803893]
[1773507696646,3.80826292,87.026,86.981,3.65803893]
[1773507702137,3.80826292,87.02,86.981,3.65803893]
[1773507708552,3.80826292,87.017,86.972,10.345]
[1773507708751,3.80826292,87.017,86.972,13.99970113]
[1773507708953,3.80826292,87.017,86.973,3.65470113]
[1773507710854,4.03633301,87.014,86.973,3.65470113]
[1773507720570,4.04707007,87.009,86.941,3.61640011]
[1773507720769,4.04707007,87.007,86.941,3.61640011]
[1773507721062,4.04707007,86.999,86.941,3.61640011]
[1773507721568,4.04707007,86.991,86.941,3.61640011]
[1773507725670,4.04707007,86.991,86.943,10.348]
[1773507725862,4.04707007,86.991,86.944,3.68883583]
[1773507726965,4.04707007,86.991,86.951,3.68961454]
[1773507727870,4.04707007,86.988,86.951,3.68961454]
[1773507731167,4.04707007,86.988,86.935,3.67822507]
[1773507731365,4.04707007,86.988,86.941,3.67822507]
[1773507735478,4.04707007,87.004,86.951,3.52950809]
[1773507736179,4.04707007,87.004,86.96,3.12214721]
[1773507738979,4.04707007,87.004,86.959,3.53060791]
[1773507739284,4.04707007,87.004,86.96,3.12214721]
[1773507739578,4.04707007,87.004,86.96,6.66870775]
[1773507739779,4.04707007,87.004,86.961,3.54656054]
[1773507766308,3.82550079,87.002,86.961,3.54656054]
[1773507770602,3.68423973,87.03,86.971,3.19069101]
[1773507770802,20.666,87.075,86.93,36.18]
[1773507770803,3.68423973,87.039,86.991,3.19069101]
[1773507770999,36.18,87.06,86.933,34.48]
[1773507771000,3.68423973,87.037,86.981,3.19069101]
[1773507771406,3.86969133,87.028,86.981,3.19069101]
[1773507771813,3.86969133,87.019,86.971,3.28949958]
[1773507772007,3.86969133,87.009,86.971,3.28949958]
[1773507772309,3.86969133,87.009,86.957,3.28949958]
[1773507774210,3.86969133,87.005,86.957,3.28949958]
[1773507775312,3.86969133,87.005,86.961,3.2463907]
[1773507780811,3.86969133,87.002,86.961,3.2463907]
[1773507786624,3.86969133,86.999,86.961,3.2463907]
[1773507789330,3.86969133,87.005,86.97,3.12214721]
[1773507789524,3.86969133,87.005,86.971,3.23335647]
[1773507797934,3.86969133,87.049,86.991,3.26479351]
[1773507798230,3.86969133,87.047,86.991,3.26479351]
[1773507798434,3.86969133,87.045,86.991,3.26479351]
[1773507798634,3.86969133,87.043,86.991,3.26479351]
[1773507799537,3.86969133,87.031,86.991,3.26479351]
[1773507812245,3.86969133,87.031,86.994,10.342]
[1773507812447,3.86969133,87.031,86.995,3.27567523]
[1773507819154,3.86969133,87.031,86.994,10.342]
[1773507821249,3.86969133,87.031,86.996,10.342]
[1773507821452,3.86969133,87.031,86.997,3.25545721]
[1773507829256,3.70007741,87.043,86.997,3.25545721]
[1773507829856,3.70007741,87.043,87.001,3.24471683]
[1773507831661,3.70007741,87.043,87.004,3.25878924]
[1773507832467,3.70007741,87.043,87.01,3.12017354]
[1773507833867,3.70007741,87.043,87.011,3.24217041]
[1773507842472,3.70007741,87.043,87.01,3.12017354]
[1773507842670,3.70007741,87.043,87.005,10.341]
[1773507842971,3.70093367,87.019,86.971,3.24712675]
[1773507843368,36.18,87.038,86.964,10.346]
[1773507843369,3.70093367,87.009,86.964,10.346]
[1773507843569,3.70093367,87.009,86.96,3.24712675]
[1773507845369,3.70093367,87.006,86.96,3.24712675]
[1773507852767,3.70093367,87.006,86.955,10.347]
[1773507852979,3.70093367,87.006,86.94,36.18]
[1773507852980,3.70093367,86.999,86.951,3.43625361]
[1773507861187,3.70093367,86.997,86.951,3.43625361]
[1773507862093,3.69413503,86.993,86.942,3.44671572]
[1773507862295,3.69413503,86.989,86.942,3.44671572]
[1773507863594,3.69413503,86.987,86.942,3.44671572]
[1773507869896,3.69413503,86.987,86.935,10.349]
[1773507870101,3.69413503,86.987,86.936,3.36959427]
[1773507870496,10.344,86.984,86.936,3.36959427]
[1773507870697,3.69413503,86.983,86.936,3.36959427]
[1773507871100,3.69413503,86.979,86.926,3.37382864]
[1773507871802,3.69413503,86.967,86.916,10.352]
[1773507872199,3.69413503,86.959,86.916,10.352]
[1773507872894,3.69413503,86.959,86.906,3.33703007]
[1773507872895,3.69413503,86.959,86.907,10.353]
[1773507873295,3.69413503,86.959,86.907,13.69003007]
[1773507873493,3.69413503,86.959,86.908,3.33703007]
[1773507875596,3.69413503,86.957,86.908,3.33703007]
[1773507876491,3.69413503,86.954,86.908,3.33703007]
[1773507878004,3.69413503,86.954,86.911,3.6895961]
[1773507883007,3.69413503,86.96,86.921,3.69215789]
[1773507884609,3.69413503,86.96,86.922,3.6952009]
[1773507886003,3.69413503,86.973,86.925,3.69706387]
[1773507886203,3.69413503,86.973,86.931,3.69706387]
[1773507886701,3.69413503,86.973,86.941,3.69635273]
[1773507889713,3.69413503,86.969,86.918,3.69425294]
[1773507891313,3.69413503,86.969,86.92,3.12110905]
[1773507891613,3.90945736,86.967,86.92,3.12110905]
[1773507892311,3.90945736,86.967,86.923,3.70823885]
[1773507892613,3.90945736,86.967,86.931,3.70823885]
[1773507912440,3.90945736,86.988,86.931,3.70823885]
[1773507912643,3.90945736,86.988,86.941,3.71372562]
[1773507913537,3.90945736,86.988,86.943,3.71282579]
[1773507914941,10.343,86.993,86.95,3.12365729]
[1773507915147,10.343,86.993,86.951,3.73244083]
[1773507915447,3.90945736,87.001,86.951,3.73244083]
[1773507920250,3.90945736,86.999,86.951,3.73244083]
[1773507922354,10.342,86.997,86.956,3.72244263]
[1773507922559,3.97432375,86.996,86.956,3.72244263]
[1773507924558,3.97432375,86.993,86.956,3.72244263]
[1773507927557,10.343,86.99,86.956,3.72244263]
[1773507932665,3.97432375,86.993,86.956,3.72244263]
[1773507948574,3.97432375,86.993,86.96,3.7023889]
[1773507948775,3.97432375,87.006,86.961,3.6979616]
[1773507948977,3.97432375,87.026,86.981,3.6979616]
[1773507950580,3.97432375,87.026,86.983,3.71191515]
[1773507951579,3.97432375,87.026,86.986,3.69785503]
[1773507965291,10.337,87.037,86.991,3.67706698]
[1773507965594,3.90649264,87.036,86.991,3.67706698]
[1773507976391,3.90649264,87.034,86.991,3.67706698]
[1773507977697,3.90649264,87.034,86.993,3.56122543]
[1773507996718,3.90649264,87.034,86.996,10.342]
[1773508006822,3.96691267,87.043,87.001,3.54606711]
[1773508008925,3.96691267,87.042,86.978,3.664573]
[1773508009124,3.96691267,87.029,86.978,3.664573]
[1773508009423,3.96691267,87.029,86.932,35.5971581]
[1773508009424,3.96691267,86.989,86.941,3.664573]
[1773508009623,3.96691267,86.979,86.941,3.664573]
[1773508009924,3.96691267,86.979,86.929,10.35]
[1773508010229,3.96691267,86.979,86.93,3.67243186]
[1773508013930,3.96691267,86.979,86.931,3.75740892]
[1773508022727,3.67377455,86.989,86.951,3.75740892]
[1773508023438,3.67377455,86.989,86.938,3.75740892]
[1773508032240,10.343,86.988,86.938,3.75740892]
[1773508032539,3.67377455,86.987,86.938,3.75740892]
[1773508032739,3.67377455,87.01,86.961,3.75740892]
[1773508032935,3.67377455,87.009,86.961,3.75740892]
[1773508034643,3.67377455,87.004,86.961,3.75740892]
[1773508045455,4.05189657,86.997,86.961,3.75740892]
[1773508045654,4.05189657,86.997,86.946,3.85030871]
[1773508046651,3.12150101,87.0,86.946,3.85030871]
[1773508046652,4.05189657,86.991,86.946,3.85030871]
[1773508052160,4.05189657,86.987,86.946,3.85030871]
[1773508058659,4.05189657,86.985,86.946,3.85030871]
[1773508077887,4.05189657,86.985,86.937,3.75030219]
[1773508078086,3.76837205,86.982,86.937,3.75030219]
[1773508080984,3.76837205,86.978,86.937,3.75030219]
[1773508081187,3.76837205,86.978,86.926,3.75030219]
[1773508081587,3.76837205,86.974,86.927,10.35]
[1773508081886,3.76837205,86.974,86.928,3.75030219]
[1773508084885,3.76837205,86.974,86.941,3.75030219]
[1773508085088,3.76837205,86.983,86.941,3.75030219]
[1773508092993,3.76837205,86.981,86.941,3.75030219]
[1773508096398,3.76837205,86.979,86.941,3.75030219]
[1773508099703,3.76837205,86.977,86.941,3.75030219]
[1773508099902,3.76837205,86.977,86.931,10.35]
[1773508100606,3.76837205,86.974,86.931,14.10030219]
[1773508101508,3.76837205,86.974,86.932,3.76949503]
[1773508106096,14.00836014,86.97,86.932,3.76949503]
[1773508106396,3.66336014,86.969,86.932,3.76949503]
[1773508117319,3.66336014,86.969,86.922,3.76949503]
[1773508118718,3.66336014,86.967,86.922,3.76949503]
[1773508140932,3.66336014,86.967,86.93,3.12279863]
[1773508141132,3.86804311,86.985,86.951,3.82346376]
[1773508155148,36.18,87.009,86.951,3.82346376]
[1773508155149,3.86804311,86.995,86.951,3.82346376]
[1773508155455,3.86804311,87.017,86.971,3.82152931]
[1773508156549,3.86804311,87.017,86.98,3.82253014]
[1773508175572,10.339,87.023,86.981,3.84340082]
[1773508178870,3.75885093,87.022,86.981,3.84340082]
[1773508180174,3.75885093,87.032,86.991,3.8442733]
[1773508181671,3.75885093,87.032,86.993,3.84897866]
[1773508192583,10.337,87.039,87.001,3.78807724]
[1773508193182,3.8247003,87.038,87.001,3.78807724]
[1773508206303,3.8247003,87.048,87.005,3.84122843]
[1773508207605,3.8247003,87.048,87.009,3.84122843]
[1773508226121,36.18,87.052,87.013,3.87670734]
[1773508227519,36.18,87.052,87.014,10.34]
[1773508227722,36.18,87.052,87.015,3.8761557]
[1773508227921,3.72956075,87.058,87.015,3.8761557]
[1773508229718,3.72956075,87.058,87.02,3.87291638]
[1773508236128,36.18,87.069,87.023,3.88413504]
[1773508236322,3.72956075,87.071,87.023,3.88413504]
[1773508237023,3.11762862,87.07,87.0,36.18]
[1773508237228,3.72956075,87.059,87.001,3.88416841]
[1773508237827,3.72956075,87.059,87.01,10.341]
[1773508246129,3.72956075,87.059,87.01,14.12113611]
[1773508247134,3.72956075,87.059,87.011,3.78027872]
[1773508253741,4.04455635,87.057,87.011,3.78027872]
[1773508259442,4.04455635,87.057,87.016,3.79764897]
[1773508275854,3.11762862,87.05,87.0,36.18]
[1773508276059,4.04455635,87.029,86.985,3.80717061]
[1773508276758,4.04455635,87.018,86.985,3.80717061]
[1773508277750,4.04455635,87.018,86.946,36.18]
[1773508277751,36.18,87.031,86.991,3.79818525]
[1773508277955,4.04455635,87.037,87.001,3.79818525]
[1773508281662,4.04455635,87.037,86.963,28.40553558]
[1773508281663,3.8191818,87.056,87.011,3.76292355]
[1773508282552,3.8191818,87.056,87.013,3.76292355]
[1773508285564,3.1197016,87.05,87.003,3.76292355]
[1773508285764,3.8191818,87.049,86.993,3.76292355]
[1773508286665,3.8191818,87.043,86.993,3.76292355]
[1773508287665,3.8191818,87.039,86.993,3.76292355]
[1773508304085,3.8191818,87.039,86.997,3.76292355]
[1773508311986,3.92666803,87.036,86.988,14.16681986]
[1773508312191,3.92666803,87.036,86.989,3.82381986]
[1773508313486,10.338,87.034,86.989,3.82381986]
[1773508313688,3.92666803,87.033,86.989,3.82381986]
[1773508320789,3.92666803,87.029,86.979,3.797315]
[1773508320990,3.92666803,87.019,86.952,3.797315]
[1773508321190,3.92666803,87.009,86.952,3.797315]
[1773508322491,10.341,87.006,86.954,3.76816824]
[1773508322798,3.92666803,87.005,86.954,3.76816824]
[1773508323698,3.92666803,87.005,86.957,3.76030185]
[1773508328399,3.92666803,87.005,86.959,3.76460728]
[1773508328600,3.92666803,87.005,86.96,3.1197016]
[1773508329202,3.92666803,87.005,86.961,3.76631497]
[1773508342710,3.92666803,87.005,86.963,3.71787327]
[1773508344517,3.92666803,87.005,86.966,3.71787327]
[1773508392558,3.92666803,87.005,86.957,3.79953776]
[1773508392853,4.02414049,86.999,86.957,3.79953776]
[1773508393556,4.02414049,86.995,86.957,3.79953776]
[1773508394248,4.02414049,86.995,86.959,3.74363188]
[1773508397453,4.02414049,87.006,86.97,3.73813527]
[1773508397648,4.02414049,87.019,86.97,3.73813527]
[1773508398548,4.02414049,87.01,86.97,3.73813527]
[1773508400161,4.02414049,87.01,86.964,10.346]
[1773508403863,4.02414049,87.01,86.965,3.71519951]
[1773508409472,4.01693523,87.008,86.965,3.71519951]
[1773508409672,4.01693523,87.008,86.951,3.71519951]
[1773508410569,4.01693523,87.005,86.951,3.71519951]
[1773508411771,4.01693523,86.999,86.951,3.71519951]
[1773508413673,4.01693523,86.997,86.951,3.71519951]
[1773508417376,4.01693523,86.997,86.954,3.71519951]
[1773508417675,4.01693523,87.005,86.954,3.71519951]
[1773508418576,4.01693523,87.005,86.956,3.71519951]
[1773508419279,4.01693523,87.005,86.962,3.71519951]
[1773508420579,4.01693523,87.005,86.964,3.71519951]
[1773508421276,4.01693523,87.001,86.964,3.71519951]
[1773508422680,4.01693523,86.997,86.964,3.71519951]
[1773508484739,3.91023746,87.008,86.964,3.71519951]
[1773508499038,10.34,87.018,86.964,3.71519951]
[1773508499340,3.94627881,87.016,86.971,3.63411717]
[1773508500643,3.94627881,87.015,86.971,3.63411717]
[1773508508253,3.12141681,87.02,86.971,3.63411717]
[1773508508254,3.94627881,87.012,86.971,3.63411717]
[1773508537683,3.9630264,87.029,86.978,3.6371863]
[1773508537884,3.9630264,87.027,86.981,3.63728689]
[1773508538187,3.9630264,87.027,86.991,3.63728689]
[1773508552492,39.91039922,87.039,86.993,3.66279894]
[1773508552689,3.73039922,87.038,86.993,3.66279894]
[1773508562791,3.73039922,87.038,86.995,3.67954184]
[1773508562999,3.73039922,87.049,87.001,3.67954184]
[1773508563501,36.18,87.051,86.97,3.67954184]
[1773508563502,3.73039922,87.019,86.97,3.67954184]
[1773508563699,3.73039922,87.017,86.97,3.67954184]
[1773508565200,3.73039922,87.015,86.97,3.67954184]
[1773508567903,3.73039922,87.009,86.97,3.67954184]
[1773508569003,36.18,87.016,86.972,3.62717542]
[1773508570304,3.73039922,87.019,86.972,3.62717542]
[1773508570504,3.73039922,87.019,86.976,10.344]
[1773508570705,3.73039922,87.019,86.977,3.6457567]
[1773508571504,3.73039922,87.019,86.98,3.62884395]
[1773508577110,3.73039922,87.019,86.984,3.55995512]
[1773508594120,18.687,87.026,86.984,3.55995512]
[1773508594320,3.79757074,87.028,86.991,3.48075576]
[1773508599425,3.79757074,87.028,86.987,10.343]
[1773508604726,3.79757074,87.028,86.99,3.59272473]
[1773508638953,3.74588464,87.027,86.99,3.59272473]
[1773508641155,3.74588464,87.024,86.979,3.68304057]
[1773508641454,3.74588464,87.024,86.93,35.5971581]
[1773508641455,4.04683415,86.989,86.939,3.68539604]
[1773508641659,4.04683415,86.979,86.939,3.68539604]
[1773508655867,3.12307327,86.97,86.915,3.6745667]
[1773508656065,4.04683415,86.968,86.92,3.12307327]
[1773508656267,36.2,86.967,86.921,3.6745667]
[1773508656866,4.04683415,86.999,86.941,3.6709827]
[1773508657066,4.04683415,86.997,86.941,3.6709827]
[1773508657370,4.04683415,86.997,86.951,3.6709827]
[1773508658271,4.04683415,86.995,86.951,3.6709827]
[1773508658565,14.38883415,86.995,86.951,3.6709827]
[1773508659573,4.04683415,86.994,86.951,3.6709827]
[1773508660066,4.04683415,86.992,86.951,3.6709827]
[1773508660271,4.04683415,86.989,86.942,13.90057548]
[1773508660471,4.04683415,86.989,86.943,3.55157548]
[1773508664869,4.04683415,86.986,86.943,3.55157548]
[1773508665172,3.12307327,86.98,86.943,3.55157548]
[1773508665375,4.04683415,86.979,86.943,3.55157548]
[1773508671279,3.69600717,86.992,86.943,3.55157548]
[1773508672581,3.84876783,86.989,86.943,3.55157548]
[1773508675277,3.84876783,86.987,86.943,3.55157548]
[1773508683384,36.2,86.996,86.943,3.55157548]
[1773508683385,3.84876783,86.985,86.943,3.55157548]
[1773508706503,3.93829919,86.983,86.932,3.36894599]
[1773508706705,3.93829919,86.979,86.932,3.36894599]
[1773508731218,3.87783216,86.975,86.914,3.37579457]
[1773508731423,3.12284348,86.99,86.914,3.37579457]
[1773508731424,3.87783216,86.959,86.914,3.37579457]
[1773508731923,3.87783216,86.949,86.914,3.37579457]
[1773508746732,3.87783216,86.949,86.916,3.40362136]
[1773508747133,3.87783216,86.969,86.921,3.40619094]
[1773508748332,3.87783216,86.967,86.922,3.40069545]
[1773508757136,3.87783216,86.967,86.921,10.351]
[1773508757137,3.87783216,86.967,86.923,10.351]
[1773508757343,36.2,86.973,86.924,3.12415082]
[1773508757539,3.87783216,86.972,86.924,3.12415082]
[1773508758544,3.87783216,86.972,86.925,10.351]
[1773508758744,3.87783216,86.972,86.926,3.12180615]
[1773508759845,3.87783216,86.972,86.93,3.12284348]
[1773508760048,3.87783216,86.972,86.931,3.112225]
[1773508763040,3.73032955,86.97,86.931,3.112225]
[1773508764752,3.73032955,86.97,86.921,3.11446869]
[1773508768256,3.73032955,86.968,86.921,3.11446869]
[1773508776568,3.73032955,86.968,86.924,3.08037329]
[1773508776867,36.2,86.973,86.931,3.08037329]
[1773508781168,36.2,86.973,86.933,3.04406529]
[1773508783864,3.73032955,86.972,86.933,3.04406529]
[1773508790075,3.73032955,86.972,86.938,3.05168795]
[1773508792972,36.2,86.975,86.938,3.05168795]
[1773508793472,36.2,86.987,86.951,3.0456493]
[1773508793666,3.82593136,86.989,86.951,3.0456493]
[1773508794778,3.82593136,86.989,86.952,10.347]
[1773508803785,3.82593136,86.989,86.953,3.05432882]
[1773508849116,4.00192792,86.999,86.961,3.0225614]
[1773508850515,4.00192792,86.999,86.961,13.3685614]
[1773508859921,4.00192792,86.999,86.962,3.04212634]
[1773508865815,4.00192792,86.999,86.961,10.346]
[1773508865816,3.91800084,86.99,86.943,10.348]
[1773508866118,3.91800084,86.989,86.943,10.348]
[1773508866319,3.91800084,86.989,86.944,3.19140762]
[1773508876020,3.91800084,86.989,86.946,10.348]
[1773508880427,3.91800084,86.989,86.946,13.70949081]
[1773508880831,3.91800084,86.989,86.946,10.348]
[1773508881924,3.91800084,86.989,86.946,13.71046232]
[1773508882125,3.91800084,86.989,86.949,3.4306955]
[1773508882531,3.91800084,86.989,86.952,13.7776955]
[1773508897142,3.91800084,86.989,86.953,3.69666951]
[1773508965497,3.87552549,87.002,86.953,3.69666951]
[1773508965702,3.87552549,87.002,86.961,3.73945647]
[1773508966492,3.87552549,87.002,86.961,10.346]
[1773508966701,3.87552549,87.002,86.962,3.74011827]
[1773508967298,3.1221884,87.0,86.962,3.74011827]
[1773508967504,3.87552549,86.999,86.962,3.74011827]
[1773508967804,3.87552549,86.999,86.953,3.78564745]
[1773508972600,3.87552549,86.999,86.955,3.74594824]
[1773508973507,3.87552549,86.999,86.957,3.74602965]
[1773508979112,3.87552549,86.999,86.899,34.51]
[1773508979113,4.00462543,86.979,86.922,3.78517761]
[1773508979412,4.00462543,86.959,86.9,3.78517761]
[1773508979910,4.00462543,86.959,86.903,3.78517761]
[1773508980611,4.00462543,86.959,86.911,3.78534147]
[1773508981513,4.00462543,86.959,86.912,3.88008259]
[1773508990316,4.00462543,86.959,86.914,3.85456507]
[1773508991518,4.00462543,86.959,86.916,3.85482058]
[1773508994313,4.00462543,86.959,86.918,3.85549622]
[1773508998821,4.00462543,86.959,86.92,3.85111546]
[1773509000622,4.00462543,86.959,86.922,3.85154551]
[1773509002522,36.2,86.973,86.925,3.85777364]
[1773509003023,3.95057376,86.972,86.925,3.85777364]
[1773509003626,3.95057376,86.972,86.931,3.85786917]
[1773509014626,3.95057376,86.972,86.934,3.86024192]
[1773509015536,3.95057376,86.972,86.936,3.86041626]
[1773509020239,36.2,86.973,86.941,3.67413025]
[1773509021239,3.95057376,86.981,86.941,3.67413025]
[1773509021638,3.95057376,86.981,86.942,3.65418742]
[1773509023341,3.95057376,86.981,86.945,3.65350268]
[1773509025742,3.95057376,86.981,86.95,3.63515469]
[1773509025943,36.2,86.989,86.95,3.63515469]
[1773509026247,3.95057376,86.991,86.951,3.63198044]
[1773509027447,3.95057376,86.991,86.952,3.63199018]
[1773509028548,3.95057376,86.991,86.954,3.62960439]
[1773509031650,3.95057376,86.991,86.955,10.347]
[1773509041955,3.95057376,86.991,86.955,13.97231048]
[1773509042156,3.95057376,86.991,86.956,3.62531048]
[1773509047566,3.95057376,86.991,86.959,14.01990765]
[1773509048565,3.95057376,86.991,86.96,3.6739962]
[1773509049467,36.2,87.0,86.962,3.67767541]
[1773509050063,3.94430663,87.001,86.962,3.67767541]
[1773509065680,3.12347287,87.0,86.962,3.67767541]
[1773509065879,3.69337631,86.999,86.962,3.67767541]
[1773509066178,3.69337631,86.999,86.961,10.346]
[1773509078690,3.69337631,86.999,86.961,14.12271042]
[1773509079291,3.69337631,86.999,86.961,10.346]
[1773509079493,3.69337631,86.999,86.962,3.77388888]
[1773509144447,10.341,87.008,86.962,3.77388888]
[1773509144648,45.39064649,87.007,86.962,3.77388888]
[1773509144844,9.19064649,87.006,86.962,3.77388888]
[1773509145044,9.19064649,87.005,86.962,3.77388888]
[1773509145245,9.19064649,87.004,86.962,3.77388888]
[1773509145445,9.19064649,87.003,86.962,3.77388888]
[1773509145645,36.2,87.007,86.962,3.77388888]
[1773509145846,9.19064517,87.006,86.962,3.77388888]
[1773509146146,9.19064517,87.005,86.962,3.77388888]
[1773509146447,9.19064517,87.004,86.962,3.77388888]
[1773509146646,9.19064517,87.003,86.962,3.77388888]
[1773509146849,3.71108306,87.006,86.962,3.77388888]
[1773509147045,9.1906382,87.005,86.962,3.77388888]
[1773509147248,9.1906382,87.004,86.962,3.77388888]
[1773509147547,9.1906382,87.003,86.962,3.77388888]
[1773509147746,3.71108306,87.006,86.962,3.77388888]
[1773509148046,12.90171919,87.005,86.962,3.77388888]
[1773509148247,9.19063613,87.004,86.962,3.77388888]
[1773509148448,9.19063613,87.003,86.962,3.77388888]
[1773509148647,3.71108306,87.005,86.962,3.77388888]
[1773509148848,9.18773944,87.004,86.962,3.77388888]
[1773509149050,9.18773944,87.003,86.962,3.77388888]
[1773509149351,3.71108306,87.005,86.962,3.77388888]
[1773509149550,9.18774,87.004,86.962,3.77388888]
[1773509149752,9.18774,87.003,86.962,3.77388888]
[1773509149952,3.71108306,87.005,86.962,3.77388888]
[1773509150154,13.06350367,87.004,86.962,3.77388888]
[1773509150351,3.87576367,87.002,86.962,3.77388888]
[1773509158062,36.2,87.007,86.965,3.68051466]
[1773509158560,36.2,87.007,86.971,3.68051466]
[1773509159061,3.70285096,87.014,86.971,3.68051466]
[1773509164560,3.70285096,87.014,86.973,3.68051466]
[1773509166566,3.70285096,87.014,86.975,3.68051466]
[1773509176077,3.70285096,87.014,86.941,36.2]
[1773509176078,36.2,87.016,86.977,3.68051466]
[1773509176277,39.90285096,87.016,86.977,3.68051466]
[1773509177589,39.90285096,87.016,86.982,3.68051466]
[1773509179390,3.70285096,87.015,86.982,3.68051466]
[1773509181382,3.70285096,87.015,86.984,3.82861102]
[1773509182594,3.70285096,87.015,86.986,3.82901641]
[1773509189000,3.70285096,87.015,86.989,10.343]
[1773509189495,36.18,87.021,86.989,14.25381764]
[1773509191593,3.73562682,87.02,86.99,3.91081764]
[1773509191797,3.73562682,87.02,86.981,14.25481764]
[1773509195902,3.73562682,87.02,86.983,10.344]
[1773509198702,3.73562682,87.02,86.983,14.25481764]
[1773509203104,3.73562682,87.02,86.97,7.03025212]
[1773509203399,36.18,87.021,86.967,10.346]
[1773509203400,3.73562682,87.009,86.967,10.346]
[1773509210505,36.18,87.008,86.959,3.91081764]
[1773509210713,3.80684194,87.007,86.959,3.91081764]
[1773509211211,3.80684194,87.007,86.961,3.99051652]
[1773509211605,3.90985372,86.999,86.961,3.99051652]
[1773509212712,3.90985372,86.999,86.965,10.346]
[1773509213612,3.90985372,86.999,86.966,3.71497946]
[1773509236327,3.90985372,86.999,86.965,10.346]
[1773509245026,3.72564118,86.989,86.931,3.80817485]
[1773509245232,3.72564118,86.979,86.931,3.80817485]
[1773509246036,3.72564118,86.979,86.935,3.80817485]
[1773509246435,3.72564118,86.979,86.937,3.80830378]
[1773509247538,3.72564118,86.979,86.94,3.84926939]
[1773509265559,3.72564118,86.978,86.94,3.84926939]
[1773509271063,14.33430997,86.988,86.94,3.84926939]
[1773509271460,3.71910878,86.987,86.94,3.84926939]
[1773509272357,3.71910878,86.985,86.94,3.84926939]
[1773509303989,3.1232651,86.98,86.94,3.84926939]
[1773509304282,3.79880566,86.979,86.94,3.84926939]
[1773509305586,3.79880566,86.977,86.94,3.84926939]
[1773509310488,36.2,86.986,86.951,3.69599734]
[1773509310687,3.79880566,86.995,86.951,3.69599734]
[1773509330208,3.79880566,86.995,86.954,3.72492822]
[1773509331505,3.79880566,86.995,86.957,3.72520883]
[1773509335810,3.79880566,86.995,86.96,3.72179625]
[1773509342018,3.79880566,86.995,86.963,3.72259057]
[1773509343516,36.2,86.999,86.966,3.72259699]
[1773509343720,40.25153642,87.015,86.966,3.72259699]
[1773509344018,9.05596259,87.014,86.966,3.72259699]
[1773509344217,9.05596259,87.013,86.966,3.72259699]
[1773509344418,4.05153642,87.014,86.966,3.72259699]
[1773509344620,13.10708793,87.013,86.966,3.72259699]
[1773509344822,4.05153642,87.013,86.966,3.72259699]
[1773509346316,3.12206407,87.01,86.966,3.72259699]
[1773509346521,3.12206407,87.01,86.921,28.40553558]
[1773509346522,4.05153642,87.018,86.968,3.44055013]
[1773509347621,4.05153642,87.018,86.97,3.44525749]
[1773509348627,4.05153642,87.018,86.973,3.4521551]
[1773509355134,4.05153642,87.018,86.977,3.45572282]
[1773509356628,4.05153642,87.018,86.979,3.46841129]
[1773509362741,40.13551561,87.026,86.983,3.45415015]
[1773509362940,3.93551561,87.025,86.983,3.45415015]
[1773509363541,3.93551561,87.025,86.984,10.344]
[1773509363738,3.93551561,87.025,86.985,3.45375871]
[1773509366241,3.93551561,87.025,86.986,13.7967734]
[1773509367548,3.93551561,87.025,86.987,3.44862278]
[1773509389362,3.93551561,87.025,86.988,13.76223689]
[1773509396676,3.93551561,87.025,86.989,3.56724277]
[1773509397976,36.2,87.026,86.993,3.56562466]
[1773509398778,3.9478158,87.047,86.993,3.56562466]
[1773509398974,3.9478158,87.047,87.001,3.57590779]
[1773509400177,3.9478158,87.045,87.001,3.57590779]
[1773509402774,3.9478158,87.045,87.004,3.57089125]
[1773509403574,3.9478158,87.045,87.006,3.5709176]
[1773509406873,3.11956833,87.04,86.996,13.91348968]
[1773509407079,3.9478158,87.029,86.987,3.57148968]
[1773509407876,3.9478158,87.029,86.969,36.18]
[1773509407877,3.9478158,87.029,86.979,10.344]
[1773509408086,3.9478158,87.019,86.98,3.56678395]
[1773509409586,3.9478158,87.019,86.982,10.344]
[1773509410181,3.9478158,87.019,86.98,3.56678395]
[1773509410485,3.9478158,87.019,86.973,10.345]
[1773509411383,3.9478158,87.019,86.973,13.97578721]
[1773509413186,3.9478158,87.019,86.975,13.96348063]
[1773509413387,3.9478158,87.019,86.976,3.61848063]
[1773509426396,3.9478158,87.019,86.978,3.74505874]
[1773509439107,3.9478158,87.019,86.983,3.75376866]
[1773509443712,3.82256391,87.031,86.993,3.75376866]
[1773509444615,3.82256391,87.031,86.995,3.75376866]
[1773509445607,3.82256391,87.031,86.99,3.1198679]
[1773509445608,3.82256391,87.042,87.0,3.1198679]